bitfinex/quotes_SOLUSD_20250624
["timestamp","ask_amount","ask_price","bid_price","bid_amount"]
[1750781724484,12.99103626,144.19,144.15,6.61103626]
[1750781725199,13.31535309,144.19,144.14,25.26068512]
[1750781725398,6.61103626,144.18,144.14,6.61103626]
[1750781725969,6.61103626,144.17,144.13,13.54921548]
[1750781726700,6.61103626,144.18,144.13,13.54921548]
[1750781727418,13.54720521,144.18,144.13,13.54921548]
[1750781729139,6.61103626,144.18,144.14,6.61103626]
[1750781729309,19.92654763,144.19,144.14,6.61103626]
[1750781729698,19.92654763,144.19,144.15,6.61103626]
[1750781730612,6.38,144.19,144.16,6.61103626]
[1750781732215,6.38,144.19,144.16,13.54754286]
[1750781732813,6.38,144.19,144.17,6.61103626]
[1750781733425,6.38,144.19,144.18,6.61103626]
[1750781734302,6.38,144.19,144.18,32.19645984]
[1750781734828,6.38,144.19,144.18,32.33862141]
[1750781735125,6.38,144.24,144.19,18.64964886]
[1750781735423,6.38,144.24,144.22,6.61103626]
[1750781735806,6.38,144.24,144.23,6.61103626]
[1750781736204,6.38,144.24,144.23,25.58301917]
[1750781736395,6.38,144.24,144.23,6.61103626]
[1750781737622,6.38,144.24,144.23,13.54440657]
[1750781739221,6.38,144.24,144.23,32.19405543]
[1750781739403,6.38,144.29,144.24,18.64964886]
[1750781739606,6.38,144.29,144.26,6.61103626]
[1750781739607,13.31068791,144.29,144.26,6.61103626]
[1750781739902,13.31068791,144.29,144.22,43.33425941]
[1750781739903,6.61103626,144.28,144.22,26.0]
[1750781740102,6.61103626,144.27,144.22,39.54486612]
[1750781740509,6.61103626,144.27,144.23,6.61103626]
[1750781740930,6.61103626,144.27,144.22,26.0]
[1750781741123,6.61103626,144.27,144.23,6.61103626]
[1750781741432,30.63690594,144.29,144.23,6.61103626]
[1750781741603,6.61103626,144.27,144.23,6.61103626]
[1750781741942,13.5423789,144.28,144.24,6.61103626]
[1750781742101,19.92169346,144.29,144.24,6.61103626]
[1750781742827,6.38,144.29,144.25,6.61103626]
[1750781743002,19.92153202,144.29,144.24,18.64964886]
[1750781743221,13.31049576,144.29,144.24,25.26068512]
[1750781743434,19.92153202,144.29,144.24,25.26068512]
[1750781744120,19.92153202,144.29,144.24,32.19342633]
[1750781745312,12.99103626,144.29,144.24,32.19342633]
[1750781745625,6.38,144.29,144.25,6.61103626]
[1750781746117,6.38,144.29,144.26,6.61103626]
[1750781747322,4.88,144.29,144.26,6.61103626]
[1750781747526,4.88,144.29,144.26,13.54280247]
[1750781748539,4.88,144.29,144.28,6.61103626]
[1750781749943,4.88,144.29,144.26,6.61103626]
[1750781752040,11.81051109,144.29,144.26,6.61103626]
[1750781752247,4.88,144.29,144.26,6.61103626]
[1750781752739,11.81060052,144.29,144.26,6.61103626]
[1750781753615,11.81060052,144.29,144.25,25.26068512]
[1750781754108,18.42163678,144.29,144.25,6.61103626]
[1750781754314,6.61103626,144.26,144.2,1.5059]
[1750781754528,6.61103626,144.26,144.21,25.26068512]
[1750781754744,6.61103626,144.25,144.2,6.61103626]
[1750781754926,6.61103626,144.24,144.2,6.61103626]
[1750781756629,13.54396986,144.24,144.19,25.26068512]
[1750781756823,6.61103626,144.22,144.18,13.54679968]
[1750781757336,12.97103626,144.23,144.19,6.61103626]
[1750781758038,6.36,144.23,144.19,6.61103626]
[1750781758341,6.36,144.23,144.19,13.54597083]
[1750781758536,6.36,144.23,144.21,6.61103626]
[1750781760330,6.36,144.23,144.22,6.61103626]
[1750781760825,6.36,144.23,144.21,13.54536813]
[1750781761335,6.36,144.23,144.21,6.61103626]
[1750781762527,6.36,144.23,144.21,13.54519022]
[1750781762847,6.36,144.23,144.22,6.61103626]
[1750781763231,6.36,144.23,144.21,13.54519022]
[1750781767343,6.36,144.23,144.21,6.93415396]
[1750781767532,6.36,144.23,144.19,32.61103626]
[1750781767533,13.29342772,144.23,144.19,32.61103626]
[1750781767731,6.36,144.23,144.19,32.61103626]
[1750781767939,6.36,144.23,144.21,6.61103626]
[1750781769853,6.36,144.23,144.21,13.54533821]
[1750781770039,6.36,144.23,144.21,6.61103626]
[1750781770373,6.36,144.23,144.2,13.54562164]
[1750781771232,6.36,144.23,144.21,6.61103626]
[1750781771439,6.36,144.23,144.21,13.54503441]
[1750781771741,6.1648,144.28,144.22,25.26068512]
[1750781771742,12.97103626,144.28,144.22,25.26068512]
[1750781771951,19.90203163,144.28,144.23,6.61103626]
[1750781772140,6.36,144.28,144.24,6.61103626]
[1750781772350,6.36,144.28,144.25,6.61103626]
[1750781773160,6.61103626,144.26,144.16,8.19753626]
[1750781773472,6.61103626,144.25,144.21,6.61103626]
[1750781773660,13.54344739,144.25,144.2,25.58425217]
[1750781773859,13.54344739,144.25,144.21,6.61103626]
[1750781774171,6.61103626,144.26,144.21,6.61103626]
[1750781775265,6.93144797,144.27,144.21,6.61103626]
[1750781775470,6.61103626,144.26,144.21,13.54489904]
[1750781775761,6.61103626,144.27,144.22,25.26068512]
[1750781776005,6.61103626,144.27,144.22,6.61103626]
[1750781776144,6.61103626,144.26,144.22,6.61103626]
[1750781776748,6.61103626,144.26,144.21,13.54489904]
[1750781776945,13.54259443,144.27,144.22,13.54465265]
[1750781777350,19.90220856,144.28,144.23,6.61103626]
[1750781777644,6.61103626,144.27,144.22,13.54465265]
[1750781777856,5.15420319,144.28,144.24,6.61103626]
[1750781778165,6.34,144.27,144.24,6.61103626]
[1750781779993,6.34,144.27,144.24,13.54392023]
[1750781780173,25.03683221,144.27,144.23,26.0]
[1750781780378,19.88262902,144.27,144.22,13.54477146]
[1750781780579,25.03683221,144.27,144.22,13.54477146]
[1750781780890,19.88262902,144.27,144.22,13.54477146]
[1750781781198,25.03683221,144.27,144.22,6.61103626]
[1750781781389,19.88262902,144.27,144.22,6.61103626]
[1750781781596,25.03683221,144.27,144.22,13.54486434]
[1750781781776,19.88262902,144.27,144.22,13.54486434]
[1750781781982,25.03683221,144.27,144.22,13.54486434]
[1750781782185,19.88262902,144.27,144.22,13.54486434]
[1750781782378,25.03683221,144.27,144.22,13.54486434]
[1750781782610,19.88262902,144.27,144.22,13.54486434]
[1750781782903,25.03683221,144.27,144.22,13.54486434]
[1750781783201,19.88262902,144.27,144.22,13.54486434]
[1750781783399,25.03683221,144.27,144.22,13.54486434]
[1750781783699,19.88262902,144.27,144.22,13.54486434]
[1750781783889,25.03683221,144.27,144.22,6.61103626]
[1750781784196,19.88262902,144.27,144.22,6.61103626]
[1750781784380,25.03683221,144.27,144.22,6.61103626]
[1750781784574,19.88262902,144.27,144.22,6.61103626]
[1750781784768,25.03683221,144.27,144.22,6.61103626]
[1750781785099,19.88262902,144.27,144.23,6.61103626]
[1750781785476,19.88262902,144.27,144.22,13.54456416]
[1750781785673,25.03683221,144.27,144.22,13.54456416]
[1750781785867,19.88262902,144.27,144.22,13.54456416]
[1750781786088,25.03683221,144.27,144.22,13.54456416]
[1750781786294,19.88262902,144.27,144.22,13.54456416]
[1750781786476,19.88262902,144.27,144.23,6.61103626]
[1750781787211,19.88262902,144.27,144.23,13.54437751]
[1750781787378,19.88262902,144.27,144.23,6.61103626]
[1750781788395,6.34,144.27,144.23,13.54432593]
[1750781788569,6.34,144.27,144.25,6.61103626]
[1750781788908,6.34,144.27,144.24,6.61103626]
[1750781790004,6.34,144.27,144.24,13.54392145]
[1750781790789,6.34,144.27,144.26,6.61103626]
[1750781791987,6.34,144.27,144.26,13.54296472]
[1750781792193,6.34,144.27,144.26,32.19261358]
[1750781792913,1.6438,144.31,144.27,18.64964886]
[1750781793078,6.34,144.32,144.29,6.61103626]
[1750781793529,5.15420319,144.33,144.29,6.61103626]
[1750781793821,5.15420319,144.33,144.27,18.64964886]
[1750781793822,6.34,144.32,144.3,6.61103626]
[1750781793987,5.15420319,144.34,144.31,6.61103626]
[1750781794190,13.07950319,144.35,144.29,18.64964886]
[1750781794381,19.69053945,144.35,144.3,6.61103626]
[1750781794605,13.07950319,144.35,144.3,6.61103626]
[1750781794830,19.69053945,144.35,144.3,6.61103626]
[1750781795036,20.00717278,144.35,144.3,6.61103626]
[1750781795205,26.61820904,144.35,144.29,25.57970949]
[1750781795415,21.46400585,144.35,144.3,6.61103626]
[1750781795624,20.00717278,144.35,144.3,6.61103626]
[1750781795823,26.61820904,144.35,144.3,6.61103626]
[1750781796308,26.61820904,144.35,144.31,6.61103626]
[1750781796513,14.85296959,144.35,144.31,6.61103626]
[1750781797234,21.46400585,144.35,144.31,6.61103626]
[1750781797536,6.61103626,144.34,144.3,6.61103626]
[1750781798105,14.85296959,144.35,144.3,6.61103626]
[1750781798337,21.46400585,144.35,144.3,13.5409583]
[1750781798589,21.46400585,144.35,144.31,6.61103626]
[1750781798846,14.85296959,144.35,144.31,6.61103626]
[1750781799210,7.9253,144.35,144.32,6.61103626]
[1750781800135,6.34,144.35,144.33,6.61103626]
[1750781800733,6.34,144.35,144.32,6.61103626]
[1750781801024,13.26767435,144.35,144.31,25.26068512]
[1750781801229,6.34,144.35,144.31,32.1900049]
[1750781802646,6.34,144.35,144.32,6.61103626]
[1750781804654,6.34,144.35,144.32,13.53967927]
[1750781806848,6.34,144.35,144.32,6.92864301]
[1750781807022,6.34,144.35,144.33,6.61103626]
[1750781807649,6.34,144.35,144.32,13.53967927]
[1750781808063,6.34,144.35,144.33,6.61103626]
[1750781808731,6.34,144.35,144.33,13.53942229]
[1750781809434,6.34,144.35,144.33,6.61103626]
[1750781810347,6.34,144.35,144.32,6.92885334]
[1750781810348,6.34,144.35,144.32,6.61103626]
[1750781810770,6.34,144.35,144.33,6.61103626]
[1750781811457,6.34,144.35,144.32,6.61103626]
[1750781812452,12.95103626,144.35,144.3,32.61103626]
[1750781813058,12.95103626,144.35,144.29,18.64964886]
[1750781813059,6.61103626,144.33,144.27,6.93144797]
[1750781813348,6.92904656,144.32,144.28,13.54199483]
[1750781813586,6.61103626,144.33,144.29,6.61103626]
[1750781815449,6.61103626,144.33,144.29,13.54145712]
[1750781815759,13.53926433,144.34,144.29,13.54141988]
[1750781820056,6.61103626,144.33,144.28,6.93076053]
[1750781820250,6.61103626,144.32,144.27,6.61103626]
[1750781820444,8.13703626,144.33,144.29,6.61103626]
[1750781820771,8.13703626,144.33,144.28,6.61103626]
[1750781821101,1.526,144.33,144.28,6.61103626]
[1750781821376,13.54008282,144.32,144.28,6.61103626]
[1750781821977,13.54008282,144.32,144.28,13.54192822]
[1750781822349,8.13703626,144.33,144.28,13.54192822]
[1750781822550,15.06561255,144.33,144.28,13.54192822]
[1750781823347,13.54018674,144.32,144.27,6.61103626]
[1750781823548,6.61103626,144.3,144.25,32.61103626]
[1750781823749,6.92915048,144.32,144.27,6.61103626]
[1750781823964,13.54018674,144.32,144.27,6.61103626]
[1750781824874,13.54018674,144.32,144.27,13.54216861]
[1750781825081,13.54018674,144.32,144.27,6.61103626]
[1750781825381,6.61103626,144.31,144.27,6.61103626]
[1750781825586,13.54018674,144.32,144.27,6.61103626]
[1750781826567,13.54018674,144.32,144.28,6.93096756]
[1750781826978,13.54018674,144.32,144.27,13.54225969]
[1750781828791,13.54018674,144.32,144.28,6.61103626]
[1750781828792,6.61103626,144.32,144.28,6.61103626]
[1750781829166,15.06582661,144.33,144.28,6.61103626]
[1750781830294,15.06582661,144.33,144.28,13.54164145]
[1750781831591,6.61103626,144.32,144.28,13.54164145]
[1750781831784,15.06582661,144.33,144.28,13.54164145]
[1750781832170,8.13703626,144.33,144.28,13.54164145]
[1750781832489,6.32,144.37,144.32,6.61103626]
[1750781832690,6.32,144.37,144.35,6.61103626]
[1750781833070,13.01854705,144.4,144.36,6.61103626]
[1750781833390,13.01744453,144.4,144.33,0.14216157]
[1750781833601,13.01744453,144.4,144.35,6.61103626]
[1750781833768,6.61103626,144.39,144.35,6.61103626]
[1750781834898,26.55407269,144.4,144.35,13.53859534]
[1750781835281,19.94303643,144.4,144.35,13.53859534]
[1750781835586,19.62848079,144.4,144.35,13.53859534]
[1750781835789,13.01744453,144.4,144.36,6.61103626]
[1750781836795,26.55387076,144.4,144.36,6.61103626]
[1750781837670,21.38672623,144.4,144.36,6.61103626]
[1750781837871,19.62877977,144.4,144.36,13.53809919]
[1750781838194,7.8503,144.4,144.36,13.53809919]
[1750781839094,7.8503,144.4,144.37,6.61103626]
[1750781839273,6.32,144.4,144.37,6.61103626]
[1750781839802,6.32,144.4,144.37,13.53736115]
[1750781841478,6.32,144.4,144.38,6.61103626]
[1750781841680,5.17979261,144.48,144.42,18.64964886]
[1750781841880,6.44781734,144.57,144.45,0.14216157]
[1750781842085,6.44781734,144.57,144.47,26.0]
[1750781842086,5.15834405,144.56,144.47,26.0]
[1750781842287,6.61103626,144.54,144.49,6.61103626]
[1750781842497,19.51924405,144.56,144.5,6.61103626]
[1750781842799,26.0,144.55,144.51,6.61103626]
[1750781843200,6.36,144.56,144.49,0.14216157]
[1750781843384,6.36,144.56,144.55,6.61103626]
[1750781843771,6.36,144.56,144.55,13.5290577]
[1750781843976,6.36,144.61,144.55,13.5290577]
[1750781844189,6.36,144.61,144.53,17.29725424]
[1750781844190,12.97103626,144.61,144.53,6.91897875]
[1750781844504,12.97103626,144.61,144.55,6.61103626]
[1750781844505,6.61103626,144.6,144.55,6.61103626]
[1750781844689,6.61103626,144.59,144.54,6.61103626]
[1750781845088,6.61103626,144.6,144.55,6.61103626]
[1750781845489,6.91610761,144.59,144.55,6.61103626]
[1750781846107,6.61103626,144.58,144.54,6.61103626]
[1750781846291,13.52714387,144.59,144.54,6.61103626]
[1750781846504,6.61103626,144.58,144.54,6.61103626]
[1750781846798,6.91610761,144.59,144.54,6.61103626]
[1750781846996,6.61103626,144.58,144.54,6.61103626]
[1750781847196,13.52810065,144.57,144.52,6.61103626]
[1750781847397,13.52810065,144.57,144.53,6.61103626]
[1750781847603,13.52810065,144.57,144.52,6.61103626]
[1750781847905,6.91706439,144.57,144.53,6.61103626]
[1750781848107,17.2904611,144.59,144.53,6.61103626]
[1750781848642,6.61103626,144.58,144.5,32.92032646]
[1750781848781,6.61103626,144.56,144.5,26.0]
[1750781848986,17.2904611,144.59,144.52,6.61103626]
[1750781849181,6.61103626,144.57,144.53,6.61103626]
[1750781849717,6.61103626,144.56,144.52,6.61103626]
[1750781850109,6.91802144,144.55,144.52,6.61103626]
[1750781850499,6.9176578,144.56,144.52,6.61103626]
[1750781850807,6.9176578,144.56,144.53,6.61103626]
[1750781851198,6.9176578,144.56,144.52,6.61103626]
[1750781852021,6.9176578,144.56,144.5,25.57003382]
[1750781852186,6.61103626,144.57,144.53,6.61103626]
[1750781852619,13.52762223,144.58,144.53,6.61103626]
[1750781853789,6.91658597,144.58,144.53,6.61103626]
[1750781853994,13.52762223,144.58,144.53,6.61103626]
[1750781854198,6.61103626,144.57,144.53,6.61103626]
[1750781854398,6.61103626,144.57,144.52,6.61103626]
[1750781854700,6.61103626,144.57,144.49,6.61103626]
[1750781854701,6.61103626,144.53,144.49,6.61103626]
[1750781855829,6.61103626,144.53,144.49,13.53188158]
[1750781857013,13.27855305,144.54,144.49,13.53188158]
[1750781857197,6.61103626,144.53,144.49,13.53188158]
[1750781857597,13.27855305,144.54,144.49,13.53188158]
[1750781857598,19.88958931,144.54,144.49,13.53188158]
[1750781859239,6.61103626,144.53,144.49,13.53188158]
[1750781859609,12.97103626,144.54,144.49,6.92084532]
[1750781859824,12.97103626,144.54,144.5,6.61103626]
[1750781860627,6.61103626,144.53,144.49,6.61103626]
[1750781861518,19.88962261,144.54,144.49,13.53184874]
[1750781861715,12.97103626,144.54,144.49,13.53184874]
[1750781861913,12.97103626,144.54,144.5,6.61103626]
[1750781862112,19.88956217,144.54,144.5,6.61103626]
[1750781863228,19.88956217,144.54,144.48,18.64964886]
[1750781863418,19.88956217,144.54,144.49,6.61103626]
[1750781864330,19.88956217,144.54,144.5,6.61103626]
[1750781864634,19.88956217,144.54,144.49,13.53193043]
[1750781864834,19.88956217,144.54,144.5,6.61103626]
[1750781865239,6.61103626,144.53,144.47,18.64964886]
[1750781865413,6.61103626,144.52,144.48,6.61103626]
[1750781866335,6.61103626,144.53,144.49,6.61103626]
[1750781866527,12.97103626,144.54,144.49,6.61103626]
[1750781866837,12.97103626,144.54,144.5,6.61103626]
[1750781867131,6.61103626,144.52,144.48,6.9212014]
[1750781867337,13.27865845,144.54,144.47,13.53275584]
[1750781867525,6.61103626,144.52,144.47,13.53275584]
[1750781868849,6.61103626,144.52,144.47,6.92171958]
[1750781869045,13.53056916,144.52,144.48,6.61103626]
[1750781870629,13.53056916,144.52,144.47,6.92171958]
[1750781870832,13.53056916,144.52,144.48,6.61103626]
[1750781871746,13.53056916,144.52,144.47,6.92171958]
[1750781871942,13.53056916,144.52,144.48,6.61103626]
[1750781872646,6.61103626,144.52,144.48,13.53234228]
[1750781872838,13.53034414,144.53,144.48,13.53234228]
[1750781873933,13.27861542,144.54,144.49,6.61103626]
[1750781874254,19.88965168,144.54,144.5,6.61103626]
[1750781874445,12.97103626,144.54,144.5,6.61103626]
[1750781874645,6.36,144.54,144.5,6.61103626]
[1750781874945,12.97103626,144.54,144.5,6.61103626]
[1750781875148,6.36,144.54,144.51,6.61103626]
[1750781875449,6.36,144.54,144.53,6.61103626]
[1750781875948,6.36,144.54,144.53,13.53001501]
[1750781876321,13.52775746,144.58,144.53,13.53001501]
[1750781876545,6.9167212,144.58,144.54,6.61103626]
[1750781876742,6.61103626,144.57,144.53,6.61103626]
[1750781878159,6.61103626,144.58,144.54,6.61103626]
[1750781878527,20.00732635,144.59,144.55,6.61103626]
[1750781878738,6.61103626,144.58,144.53,6.61103626]
[1750781879882,6.48,144.59,144.55,6.61103626]
[1750781880054,13.09103626,144.59,144.55,6.61103626]
[1750781880435,20.00714873,144.59,144.54,6.61103626]
[1750781880637,6.61103626,144.58,144.54,6.61103626]
[1750781881179,25.12574291,144.59,144.54,6.61103626]
[1750781881658,25.12574291,144.59,144.54,13.52914657]
[1750781882749,5.11859418,144.58,144.54,13.52914657]
[1750781883330,5.11859418,144.58,144.55,6.61103626]
[1750781883545,5.1428725,144.58,144.55,6.61103626]
[1750781884235,20.00729958,144.59,144.55,6.61103626]
[1750781884536,5.14288854,144.58,144.55,13.5290083]
[1750781884838,5.14288854,144.57,144.55,6.61103626]
[1750781885144,5.14288854,144.58,144.55,6.61103626]
[1750781885336,5.14288854,144.57,144.53,18.64964886]
[1750781885536,6.48,144.59,144.55,6.61103626]
[1750781885732,5.15483834,144.58,144.57,6.61103626]
[1750781886167,6.48,144.59,144.57,9.17772858]
[1750781886462,6.39824273,144.62,144.58,13.52762223]
[1750781886635,5.16229406,144.61,144.6,6.61103626]
[1750781887165,5.16229406,144.61,144.58,6.91658597]
[1750781887471,6.48,144.64,144.6,26.0]
[1750781887472,5.15830395,144.63,144.6,26.0]
[1750781887756,6.48,144.64,144.61,9.17306052]
[1750781887970,5.15844401,144.63,144.6,26.0]
[1750781888149,6.48,144.64,144.62,6.61103626]
[1750781888648,6.48,144.64,144.61,6.61103626]
[1750781889555,18.54463083,144.64,144.57,18.79181043]
[1750781889773,6.61103626,144.63,144.58,2.56135842]
[1750781890070,6.61103626,144.61,144.57,6.61103626]
[1750781890230,30.67812381,144.64,144.53,17.29639128]
[1750781890231,6.61103626,144.6,144.55,6.91802144]
[1750781890430,6.61103626,144.59,144.56,2.55968141]
[1750781890632,13.52715614,144.59,144.54,25.26068512]
[1750781890931,13.52715614,144.59,144.54,13.52945228]
[1750781891136,13.52715614,144.59,144.55,6.61103626]
[1750781891650,6.91611988,144.59,144.55,6.61103626]
[1750781891857,5.15040499,144.6,144.55,6.61103626]
[1750781891858,18.67728593,144.6,144.55,6.61103626]
[1750781892065,6.61103626,144.59,144.55,6.61103626]
[1750781892771,6.61103626,144.59,144.55,13.52896008]
[1750781892945,13.52721388,144.59,144.55,13.52896008]
[1750781893269,13.52721388,144.59,144.55,6.61103626]
[1750781893446,13.52721388,144.59,144.55,13.52905132]
[1750781893844,13.52721388,144.59,144.55,13.52901472]
[1750781894375,13.52721388,144.59,144.54,6.61103626]
[1750781894548,13.52721388,144.59,144.54,13.52951917]
[1750781897275,13.52721388,144.59,144.53,18.64964886]
[1750781897276,6.61103626,144.57,144.53,6.61103626]
[1750781898367,6.61103626,144.57,144.52,39.53027025]
[1750781898880,6.61103626,144.57,144.53,6.61103626]
[1750781899084,13.52821527,144.57,144.53,6.61103626]
[1750781899482,13.52821527,144.57,144.52,39.53027025]
[1750781900481,6.61103626,144.55,144.49,6.92089417]
[1750781900786,6.91717901,144.57,144.5,6.61103626]
[1750781900787,6.61103626,144.54,144.5,6.61103626]
[1750781901376,6.61103626,144.56,144.52,6.61103626]
[1750781901578,6.91717901,144.57,144.52,6.61103626]
[1750781901884,13.52821527,144.57,144.52,6.61103626]
[1750781902088,6.61103626,144.53,144.49,13.53193043]
[1750781902886,13.53004754,144.53,144.48,39.53226351]
[1750781903467,8.4672304,144.55,144.5,6.61103626]
[1750781903773,6.61103626,144.53,144.48,32.92122725]
[1750781903968,6.61103626,144.53,144.48,26.0]
[1750781904195,6.61103626,144.5,144.45,6.61103626]
[1750781904568,6.61103626,144.51,144.47,6.61103626]
[1750781904965,6.61103626,144.51,144.46,6.61103626]
[1750781905275,6.61103626,144.5,144.45,13.53384692]
[1750781905478,6.61103626,144.5,144.45,6.92281066]
[1750781905682,6.61103626,144.5,144.45,13.53384692]
[1750781905855,6.61103626,144.49,144.44,25.57273618]
[1750781906055,6.61103626,144.49,144.44,13.53412358]
[1750781906490,6.61103626,144.49,144.43,32.92364257]
[1750781906691,6.61103626,144.48,144.44,6.61103626]
[1750781906862,6.61103626,144.49,144.45,6.61103626]
[1750781907572,6.61103626,144.49,144.43,32.92364257]
[1750781907774,6.61103626,144.49,144.45,6.61103626]
[1750781907987,6.61103626,144.49,144.43,32.92364257]
[1750781908192,6.61103626,144.47,144.43,32.92364257]
[1750781908492,6.61103626,144.48,144.44,6.61103626]
[1750781908657,6.61103626,144.48,144.43,13.53465483]
[1750781909062,6.61103626,144.47,144.43,6.61103626]
[1750781909282,6.61103626,144.46,144.42,13.53510381]
[1750781909592,6.61103626,144.46,144.42,6.92406755]
[1750781910097,6.61103626,144.45,144.41,13.53573321]
[1750781910494,13.03103626,144.46,144.41,13.53573321]
[1750781910792,13.03103626,144.46,144.41,6.92469695]
[1750781910993,19.95357304,144.46,144.41,13.53573321]
[1750781913096,19.95357304,144.46,144.41,6.92469695]
[1750781913393,13.34253678,144.46,144.39,13.53672363]
[1750781913565,6.61103626,144.44,144.4,6.61103626]
[1750781914167,6.61103626,144.44,144.39,6.92568737]
[1750781914168,13.53441933,144.44,144.39,13.53672363]
[1750781914494,6.61103626,144.44,144.39,13.53672363]
[1750781914987,13.53454083,144.44,144.39,6.92568737]
[1750781915169,6.92350457,144.44,144.39,13.53672363]
[1750781915370,6.61103626,144.43,144.39,13.53672363]
[1750781915570,6.61103626,144.43,144.35,10.4376305]
[1750781915771,6.61103626,144.42,144.38,6.61103626]
[1750781915988,6.61103626,144.42,144.37,6.61103626]
[1750781916194,13.53541722,144.42,144.37,13.53747266]
[1750781916373,6.61103626,144.41,144.36,6.92702047]
[1750781916580,6.61103626,144.41,144.37,6.61103626]
[1750781916899,6.61103626,144.42,144.38,6.61103626]
[1750781917071,13.53528751,144.42,144.36,6.92702047]
[1750781917397,13.53528751,144.42,144.37,6.61103626]
[1750781917601,13.53528751,144.42,144.36,6.92702047]
[1750781917774,13.53528751,144.42,144.37,6.61103626]
[1750781917976,13.53528751,144.42,144.37,13.53758694]
[1750781918395,13.53528751,144.42,144.35,44.64964886]
[1750781918396,6.61103626,144.41,144.36,13.53809194]
[1750781918774,6.61103626,144.39,144.35,6.61103626]
[1750781918975,13.03103626,144.4,144.35,6.61103626]
[1750781919299,6.61103626,144.38,144.34,6.92792511]
[1750781919470,6.61103626,144.38,144.34,13.53896137]
[1750781919776,6.42,144.4,144.35,6.61103626]
[1750781919982,13.03103626,144.4,144.35,6.61103626]
[1750781920193,13.03103626,144.4,144.35,13.53839074]
[1750781920581,13.03103626,144.4,144.36,6.61103626]
[1750781920785,19.95635661,144.4,144.36,6.61103626]
[1750781921282,19.95635661,144.4,144.35,13.53839074]
[1750781921878,6.42,144.4,144.35,13.53839074]
[1750781922081,6.42,144.4,144.37,6.61103626]
[1750781922775,6.42,144.4,144.37,13.53767231]
[1750781923098,6.42,144.4,144.38,6.61103626]
[1750781923473,6.42,144.4,144.39,6.61103626]
[1750781924401,6.42,144.4,144.39,13.53672363]
[1750781928306,6.42,144.4,144.38,13.5370123]
[1750781928976,6.42,144.4,144.38,6.61103626]
[1750781929409,6.42,144.4,144.37,6.61103626]
[1750781930399,6.42,144.4,144.38,6.61103626]
[1750781930925,6.42,144.4,144.39,13.53672363]
[1750781931788,6.42,144.4,144.39,6.61103626]
[1750781931985,6.42,144.4,144.37,6.9264827]
[1750781932192,6.42,144.4,144.38,6.61103626]
[1750781934713,6.42,144.4,144.37,6.9264827]
[1750781935014,6.42,144.4,144.38,6.61103626]
[1750781935317,6.42,144.4,144.37,6.9264827]
[1750781935520,6.42,144.4,144.38,6.61103626]
[1750781936519,6.42,144.4,144.39,6.61103626]
[1750781937029,6.42,144.4,144.39,13.53672363]
[1750781941098,21.55020588,144.45,144.39,13.53672363]
[1750781941300,21.55020588,144.45,144.4,6.61103626]
[1750781941495,8.0161,144.45,144.41,6.61103626]
[1750781942622,21.55002088,144.45,144.4,6.61103626]
[1750781943201,14.62713626,144.45,144.4,13.53590779]
[1750781943611,21.55010839,144.45,144.4,13.53590779]
[1750781946311,21.55010839,144.45,144.4,6.61103626]
[1750781946514,21.55010839,144.45,144.41,6.61103626]
[1750781947311,6.48,144.45,144.41,13.5355881]
[1750781947595,6.48,144.45,144.42,6.61103626]
[1750781948232,13.40289422,144.45,144.41,13.5355881]
[1750781948433,20.01393048,144.45,144.4,13.53603489]
[1750781948768,6.61103626,144.44,144.4,13.53603489]
[1750781949429,6.61103626,144.44,144.39,13.53647677]
[1750781949632,20.01401055,144.45,144.4,6.61103626]
[1750781949835,6.48,144.45,144.41,6.61103626]
[1750781950126,6.48,144.45,144.43,6.61103626]
[1750781950343,6.48,144.5,144.44,6.61103626]
[1750781950525,6.48,144.5,144.47,6.61103626]
[1750781952908,13.40050038,144.5,144.47,6.61103626]
[1750781953118,13.40050038,144.5,144.46,6.61103626]
[1750781953305,13.40050038,144.5,144.44,25.57275097]
[1750781953522,20.01153664,144.5,144.45,6.61103626]
[1750781953716,6.61103626,144.49,144.45,6.61103626]
[1750781954725,20.01153664,144.5,144.46,6.61103626]
[1750781954924,6.48,144.5,144.47,6.61103626]
[1750781955128,13.40042575,144.5,144.47,6.61103626]
[1750781955431,20.01146201,144.5,144.45,6.61103626]
[1750781955635,6.48,144.5,144.46,6.61103626]
[1750781955811,6.48,144.5,144.48,6.61103626]
[1750781956120,6.48,144.5,144.47,6.61103626]
[1750781956327,6.48,144.5,144.48,6.61103626]
[1750781957934,6.48,144.5,144.47,6.61103626]
[1750781958526,13.4004459,144.5,144.46,6.61103626]
[1750781958720,20.01148216,144.5,144.46,6.61103626]
[1750781959443,13.4004459,144.5,144.46,6.61103626]
[1750781959737,13.4004459,144.5,144.47,6.61103626]
[1750781959738,6.48,144.5,144.47,6.61103626]